bitfinex/quotes_ETHUSD_20241223
["timestamp","ask_amount","ask_price","bid_price","bid_amount"]
[1734919125248,5.61107407,3260.7,3260.6,1.24957822]
[1734919126143,2.74982,3260.7,3260.6,1.24957822]
[1734919126349,3.06701,3260.5,3260.4,0.34925294]
[1734919126551,3.06741,3260.1,3259.8,0.1655771]
[1734919126854,3.47372909,3260.7,3259.8,0.1655771]
[1734919127304,3.47372909,3260.7,3259.9,1.2975]
[1734919127506,3.0673,3260.2,3259.9,1.2975]
[1734919127706,3.47372909,3260.3,3259.8,0.1655771]
[1734919127901,6.54129909,3259.9,3259.8,0.1655771]
[1734919128611,6.53629909,3259.9,3259.8,0.1655771]
[1734919129122,6.53629909,3259.9,3259.8,7.1e-06]
[1734919129339,3.06895,3258.5,3257.9,1.2975]
[1734919130011,6.54244909,3258.7,3257.9,1.2975]
[1734919130526,3.06885,3258.6,3257.9,1.48929486]
[1734919130852,3.47372909,3258.7,3257.9,1.48929486]
[1734919131055,3.06903,3258.4,3257.9,1.2975]
[1734919131215,3.47372909,3258.3,3257.9,1.2975]
[1734919131551,3.06919,3258.2,3257.7,0.62044858]
[1734919131707,3.47372909,3258.3,3257.7,0.62044858]
[1734919131907,3.47372909,3259.1,3257.7,0.62044858]
[1734919132107,3.06872,3258.7,3257.7,0.62044858]
[1734919132520,3.06888,3258.6,3257.7,0.62044858]
[1734919132922,3.47372909,3258.7,3257.7,0.62044858]
[1734919133158,3.06854,3258.9,3257.7,0.62044858]
[1734919133455,3.47372909,3259.1,3257.4,1.2975]
[1734919133749,3.06884,3258.6,3257.5,0.60620773]
[1734919134637,3.47372909,3258.6,3257.4,1.2975]
[1734919134956,3.06909,3258.3,3257.4,1.90131068]
[1734919135107,3.06909,3258.3,3257.5,0.19013107]
[1734919135671,4.075135,3258.6,3257.5,0.19013107]
[1734919136484,4.075135,3258.6,3257.6,1.2975]
[1734919136657,1.006295,3258.6,3257.6,4.36716]
[1734919136863,1.006295,3258.6,3257.8,1.2975]
[1734919137539,3.0691,3258.3,3257.8,1.2975]
[1734919137770,1.006295,3258.6,3257.7,0.45572911]
[1734919137771,1.006295,3258.6,3258.0,3.0]
[1734919137943,1.006295,3258.6,3258.1,1.2975]
[1734919138276,3.06921,3258.2,3257.6,1.2975]
[1734919138427,3.06889,3258.5,3257.6,1.46180074]
[1734919138632,3.06901,3258.4,3257.6,1.46180074]
[1734919138828,3.06932,3258.1,3257.6,1.2975]
[1734919139259,3.06909,3258.3,3257.6,1.2975]
[1734919139482,3.069,3258.4,3257.6,1.2975]
[1734919139844,3.06911,3258.3,3257.6,1.2975]
[1734919140057,3.06911,3258.3,3256.8,6.07041]
[1734919140058,1.006295,3258.6,3257.0,1.2975]
[1734919140258,3.06889,3258.5,3257.0,1.2975]
[1734919140566,3.06929,3258.1,3257.0,1.2975]
[1734919141377,3.06952,3257.9,3257.0,1.2975]
[1734919141592,3.0697,3257.7,3257.0,1.2975]
[1734919141990,3.06979,3257.6,3257.0,1.2975]
[1734919143297,3.07003,3257.3,3257.0,1.2975]
[1734919143489,3.0702,3257.2,3256.6,1.4630771]
[1734919143787,3.06976,3257.6,3256.6,1.4630771]
[1734919143788,3.07023,3257.1,3256.6,1.4630771]
[1734919144175,4.4224,3258.1,3256.6,1.4630771]
[1734919144375,3.07004,3257.3,3256.6,1.4630771]
[1734919144576,7.6414,3258.1,3256.6,1.4630771]
[1734919144763,3.07018,3257.2,3256.6,1.4630771]
[1734919144964,3.06975,3257.6,3256.6,1.4630771]
[1734919145180,3.0702,3257.2,3256.6,1.4630771]
[1734919145985,3.07022,3257.1,3256.6,1.4630771]
[1734919146497,3.47372909,3257.9,3256.6,1.4630771]
[1734919146699,3.07032,3257.0,3256.6,1.4630771]
[1734919147650,0.6153742,3257.8,3256.6,1.4630771]
[1734919147651,3.06981,3257.6,3256.6,1.4630771]
[1734919147953,3.07018,3257.2,3256.6,0.1655771]
[1734919148451,1.5565,3257.5,3256.6,0.1655771]
[1734919148970,3.0,3257.4,3256.6,0.1655771]
[1734919149284,3.07059,3256.7,3256.6,0.1655771]
[1734919149681,3.47372909,3257.1,3256.6,0.1655771]
[1734919149887,3.07048,3256.9,3256.6,0.1655771]
[1734919150084,3.0705,3256.8,3256.6,0.1655771]
[1734919150319,3.0,3257.4,3256.6,0.1655771]
[1734919150449,8.10011909,3257.5,3256.6,1.4630771]
[1734919150655,5.03022909,3257.5,3256.6,1.4630771]
[1734919150910,3.47372909,3258.3,3256.6,1.4630771]
[1734919151193,1.4496,3258.5,3256.6,1.4630771]
[1734919151194,4.5185,3258.5,3257.2,1.2975]
[1734919151358,3.069,3258.4,3257.2,4.36761]
[1734919151704,1.4496,3258.5,3257.3,3.06998]
[1734919151871,1.006295,3258.6,3257.6,1.2975]
[1734919152067,1.006295,3258.6,3257.7,3.06955]
[1734919152266,1.006295,3258.6,3257.6,1.2975]
[1734919152465,1.006295,3258.6,3257.7,1.2975]
[1734919152799,1.006295,3258.6,3257.6,1.2975]
[1734919152991,1.006295,3258.6,3258.0,1.373]
[1734919153193,1.006295,3258.6,3258.5,4.44189]
[1734919153788,1.006295,3258.6,3258.5,8.100913]
[1734919154001,1.006295,3258.6,3258.5,3.708959]
[1734919154207,1.006295,3258.6,3258.5,1.373]
[1734919154364,1.006295,3258.6,3258.5,2.08560394]
[1734919155268,3.06778,3259.7,3258.5,2.08560394]
[1734919155604,3.06775,3259.8,3258.5,2.08560394]
[1734919155802,1.5231,3260.0,3258.5,1.64140794]
[1734919156002,3.06758,3259.9,3258.6,3.06878]
[1734919156206,1.5231,3260.0,3258.9,3.06851]
[1734919156411,3.06731,3260.2,3259.0,1.373]
[1734919156818,8.03504909,3260.7,3259.0,4.44138]
[1734919157025,3.06702,3260.5,3259.3,3.06814]
[1734919157618,1.4945,3260.7,3259.4,1.373]
[1734919157789,1.4619,3261.3,3259.6,1.373]
[1734919157995,4.52817,3261.3,3259.9,3.06751]
[1734919158191,3.06637,3261.2,3260.0,0.306751]
[1734919158519,3.06669,3260.9,3260.0,0.26840794]
[1734919158722,3.06654,3261.0,3260.0,0.26840794]
[1734919159019,3.06695,3260.6,3260.0,0.26840794]
[1734919159185,3.06654,3261.0,3259.7,1.373]
[1734919159186,4.52823,3260.5,3259.8,0.26840794]
[1734919159387,4.52823,3260.5,3259.7,1.02095294]
[1734919159820,3.0668,3260.8,3259.7,1.02095294]
[1734919160128,1.4612,3260.8,3259.7,1.02095294]
[1734919160330,4.528,3260.8,3259.7,1.02095294]
[1734919160980,1.4612,3260.8,3259.7,1.02095294]
[1734919161529,3.06725,3260.3,3259.7,1.02095294]
[1734919162318,3.06669,3260.9,3259.3,8.98]
[1734919162523,6.06646,3261.1,3259.8,1.021]
[1734919162691,6.06646,3261.1,3259.8,4.08866]
[1734919162891,3.06613,3261.5,3260.0,3.06747]
[1734919163107,3.06613,3261.5,3260.2,4.08827]
[1734919164118,3.0658,3261.8,3260.2,1.021]
[1734919164288,3.0661,3261.5,3260.2,1.021]
[1734919164633,3.06617,3261.4,3260.2,1.021]
[1734919165418,3.06637,3261.2,3260.2,1.021]
[1734919165825,3.06649,3261.1,3260.2,1.021]
[1734919166327,3.06637,3261.2,3260.2,1.021]
[1734919168831,3.06609,3261.5,3260.2,1.021]
[1734919169000,3.06609,3261.5,3260.2,4.08829]
[1734919169325,3.06609,3261.5,3260.3,1.021]
[1734919169520,0.62381172,3262.1,3260.5,1.021]
[1734919169742,3.06609,3261.5,3260.5,1.021]
[1734919170463,1.4332,3261.7,3260.5,1.021]
[1734919170614,3.06676,3260.8,3260.2,1.021]
[1734919170798,1.4332,3261.4,3260.2,1.021]
[1734919171002,1.4332,3261.8,3260.2,1.021]
[1734919171201,1.4332,3261.8,3260.4,3.06709]
[1734919171505,3.06613,3261.5,3260.5,1.021]
[1734919173668,1.4332,3261.8,3260.5,1.021]
[1734919173866,1.4332,3261.8,3259.8,1.021]
[1734919174163,3.06642,3261.2,3259.8,1.021]
[1734919174329,3.06642,3261.2,3259.8,3.06759]
[1734919174528,3.06642,3261.2,3259.9,1.021]
[1734919174768,3.06614,3261.5,3260.2,1.021]
[1734919174980,3.06554,3262.1,3260.7,1.021]
[1734919175133,1.5503,3262.2,3261.1,1.021]
[1734919175341,2.15961677,3263.6,3261.1,12.45372909]
[1734919175342,3.06468,3263.0,3261.1,12.45372909]
[1734919175555,3.06468,3263.0,3261.7,1.021]
[1734919175776,3.06468,3263.0,3261.8,1.021]
[1734919176161,1.5094,3263.5,3262.2,1.021]
[1734919176780,3.06478,3262.9,3262.2,1.021]
[1734919177134,3.06457,3263.1,3261.4,1.021]
[1734919177369,3.0654,3262.3,3261.4,1.021]
[1734919177761,3.06542,3262.2,3261.4,1.021]
[1734919178155,3.0,3262.8,3261.4,1.021]
[1734919178359,3.06508,3262.6,3261.4,1.021]
[1734919178939,3.06508,3262.6,3261.4,3.06614]
[1734919179139,3.06508,3262.6,3261.5,1.021]
[1734919179946,3.06532,3262.3,3261.5,1.021]
[1734919180638,3.06529,3262.4,3261.5,1.021]
[1734919181180,3.62680859,3263.2,3261.5,1.021]
[1734919181181,3.0,3262.7,3261.5,1.021]
[1734919181362,3.06544,3262.2,3261.5,1.021]
[1734919181683,6.06502,3262.7,3261.5,1.021]
[1734919181684,3.06526,3262.4,3261.5,1.021]
[1734919181882,3.06504,3262.6,3261.5,1.021]
[1734919182962,1.5061,3262.8,3261.5,1.021]
[1734919182963,3.06525,3262.4,3261.5,1.021]
[1734919183368,3.06532,3262.3,3261.5,1.021]
[1734919183682,3.06527,3262.4,3261.5,1.021]
[1734919184164,3.06553,3262.1,3261.5,1.021]
[1734919184557,3.06561,3262.0,3261.5,1.021]
[1734919186448,3.0,3262.7,3261.5,1.021]
[1734919186778,3.06531,3262.4,3261.5,1.021]
[1734919186938,3.0,3262.7,3260.3,15.52085909]
[1734919186939,3.06541,3262.2,3261.1,1.0214]
[1734919187138,1.4427,3262.3,3261.1,1.0214]
[1734919187139,3.06628,3261.3,3261.1,1.0214]
[1734919188307,3.06541,3262.2,3261.1,1.0214]
[1734919188524,3.0,3262.1,3261.1,1.0214]
[1734919188721,3.47372909,3263.0,3261.1,1.0214]
[1734919189026,3.06561,3262.0,3261.1,1.0214]
[1734919189188,3.06569,3261.9,3261.1,1.0214]
[1734919189506,3.0658,3261.8,3261.1,1.0214]
[1734919190292,3.06588,3261.7,3261.1,1.0214]
[1734919190773,3.06602,3261.6,3261.1,1.0214]
[1734919190970,3.0,3262.5,3261.1,1.0214]
[1734919191165,3.06627,3261.3,3261.1,1.0214]
[1734919191374,1.465,3261.9,3261.1,1.0214]
[1734919191598,3.0,3262.5,3261.1,1.0214]
[1734919191599,3.06589,3261.7,3261.1,1.0214]
[1734919192003,4.52397,3262.2,3261.1,1.0214]
[1734919192309,3.06581,3261.8,3261.1,1.0214]
[1734919192674,3.06532,3262.3,3261.1,1.0214]
[1734919192675,3.0656,3262.1,3261.1,1.0214]
[1734919192874,3.06562,3262.0,3261.2,0.26938698]
[1734919193275,1.4585,3262.6,3261.3,1.0214]
[1734919193512,3.06533,3262.3,3261.3,1.0214]
[1734919193714,1.4585,3262.6,3261.3,1.0214]
[1734919193715,3.06546,3262.2,3261.3,1.0214]
[1734919194511,3.06546,3262.2,3261.4,0.26924621]
[1734919195215,3.06546,3262.2,3261.5,0.26924621]
[1734919195940,4.4585,3262.6,3261.5,0.26924621]
[1734919196157,4.4585,3262.6,3261.3,1.0214]
[1734919196301,3.06589,3261.7,3261.3,1.0214]
[1734919196744,3.06513,3262.5,3261.3,1.0214]
[1734919197065,3.0657,3261.9,3261.3,1.0214]
[1734919197800,3.0657,3261.9,3261.4,0.26907548]
[1734919198153,3.0,3262.3,3261.4,0.26907548]
[1734919198305,3.06546,3262.2,3261.4,0.26907548]
[1734919198501,3.06546,3262.2,3261.5,0.26907548]
[1734919198744,3.06523,3262.4,3261.5,0.26907548]
[1734919198947,3.06523,3262.4,3261.6,1.0214]
[1734919199241,3.06532,3262.3,3261.6,1.29047548]
[1734919199455,3.06503,3262.7,3261.6,1.29047548]
[1734919199670,3.06503,3262.7,3261.7,1.0214]
[1734919200335,3.06513,3262.5,3261.8,0.26907548]
[1734919201083,3.06513,3262.5,3261.9,0.26907548]
[1734919201437,1.5311,3262.9,3261.9,0.26907548]
[1734919201630,3.06542,3262.2,3261.9,0.26907548]
[1734919201825,3.06542,3262.2,3262.0,0.26907548]
[1734919202031,3.0655,3262.1,3262.0,0.26907548]
[1734919202473,3.0655,3262.1,3261.7,1.0214]
[1734919202832,3.06579,3261.8,3261.7,1.0214]
[1734919203053,3.06514,3262.5,3261.7,1.0214]
[1734919203412,3.06549,3262.2,3261.3,1.0214]
[1734919203559,7.59593,3262.9,3261.4,1.0214]
[1734919203755,1.4692,3263.3,3261.7,1.0214]
[1734919204117,1.90961677,3263.5,3262.3,3.06523]
[1734919204400,1.90961677,3263.5,3262.4,1.0214]
[1734919204562,1.90961677,3263.5,3262.4,3.33438216]
[1734919204756,3.06414,3263.6,3262.5,1.0214]
[1734919204952,3.37881677,3264.0,3262.5,0.43557822]
[1734919205193,1.90961677,3264.0,3262.7,1.0214]
[1734919205374,1.90961677,3264.0,3263.2,1.0214]
[1734919205579,1.90961677,3264.0,3263.3,1.0214]
[1734919206276,3.06344,3264.3,3263.4,0.26917216]
[1734919206465,3.06384,3263.9,3263.4,0.26917216]
[1734919206667,3.06396,3263.8,3263.4,0.26917216]
[1734919206861,3.06396,3263.8,3263.2,1.0214]
[1734919207062,1.4692,3264.4,3263.2,1.0214]
[1734919207277,3.47372909,3264.6,3263.2,1.0214]
[1734919207476,3.06325,3264.5,3263.2,1.0214]
[1734919207662,3.0,3264.7,3263.2,1.0214]
[1734919207867,3.06357,3264.2,3263.4,1.0214]
[1734919208255,3.06332,3264.5,3263.4,1.0214]
[1734919208455,3.06292,3264.9,3263.1,1.0214]
[1734919208786,3.06292,3264.9,3263.3,1.0214]
[1734919208994,3.06251,3265.3,3263.9,3.06378]
[1734919209179,3.06251,3265.3,3264.1,1.0214]
[1734919209354,1.5375,3265.6,3264.1,1.0214]
[1734919209720,3.06346,3264.3,3264.1,1.0214]
[1734919210162,4.51433,3264.8,3263.1,12.45372909]
[1734919210163,3.06391,3263.8,3263.1,0.60639707]
[1734919210359,3.06323,3264.6,3263.0,1.0214]
[1734919210360,1.538,3264.0,3263.0,1.0214]
[1734919210562,3.06419,3263.5,3263.4,1.24369957]
[1734919211602,3.06419,3263.5,3262.7,1.0214]
[1734919211816,3.06353,3264.2,3262.7,1.0214]
[1734919211955,3.0,3264.4,3263.0,1.0214]
[1734919212327,3.0,3264.3,3263.0,1.0214]
[1734919212811,3.0,3264.3,3263.0,4.08605]
[1734919213010,1.567,3264.9,3263.3,1.0214]
[1734919213159,0.62596618,3265.2,3263.4,1.0186]
[1734919213359,0.62596618,3265.2,3263.5,1.0186]
[1734919213558,3.06327,3264.5,3263.7,1.0186]
[1734919213807,3.06296,3264.9,3263.7,0.579683]
[1734919213970,0.62596618,3265.2,3263.7,0.579683]
[1734919214156,3.0633,3264.5,3263.7,0.579683]
[1734919214357,3.06336,3264.4,3263.7,0.579683]
[1734919214561,3.06278,3265.0,3263.7,0.579683]
[1734919214873,3.06335,3264.4,3263.7,0.579683]
[1734919215194,2.1900025,3265.3,3263.7,0.579683]
[1734919215493,3.06309,3264.7,3263.7,0.579683]
[1734919215681,1.567,3265.3,3263.7,0.579683]
[1734919215885,3.0629,3264.9,3263.7,0.579683]
[1734919216397,3.06407,3263.7,3262.3,8.98]
[1734919216602,1.5618,3263.6,3262.7,1.24369957]
[1734919216896,3.06485,3262.8,3262.7,1.24369957]
[1734919217663,6.06485,3262.8,3262.7,9.57e-06]
[1734919217857,7.63825,3262.8,3262.7,9.57e-06]
[1734919218110,3.0,3262.8,3261.9,0.5797]
[1734919218266,3.06523,3262.4,3261.9,0.5797]
[1734919218969,3.0,3263.1,3261.9,0.5797]
[1734919219165,3.06495,3262.7,3261.9,0.5797]
[1734919219992,3.06369,3264.1,3261.9,0.5797]
[1734919219993,1.5734,3263.8,3261.9,0.5797]
[1734919220200,1.5734,3263.8,3261.8,3.47372909]
[1734919220201,3.06436,3263.4,3262.3,0.5797]
[1734919220901,3.06447,3263.2,3262.3,0.5797]
[1734919221679,3.06428,3263.5,3262.3,0.5797]
[1734919221862,3.0644,3263.3,3262.3,0.5797]
[1734919222065,3.06416,3263.6,3262.3,3.64501]
[1734919222306,3.06416,3263.6,3262.5,0.5797]
[1734919222602,3.06292,3264.9,3262.7,3.06493]
[1734919222603,3.06384,3263.9,3262.7,3.06493]
[1734919222820,3.06356,3264.2,3262.9,0.5797]
[1734919223022,3.06356,3264.2,3263.0,0.364453]
[1734919223162,3.06356,3264.2,3263.1,0.5797]
[1734919223591,1.90961677,3265.1,3263.5,0.5797]
[1734919223902,1.90961677,3265.1,3264.0,0.5797]
[1734919224102,3.45601677,3265.8,3264.0,0.5797]
[1734919224305,3.06251,3265.3,3264.0,0.5797]
[1734919224667,3.06293,3264.9,3264.0,0.5797]
[1734919224867,3.063,3264.8,3264.0,0.5797]
[1734919225293,3.06253,3265.3,3264.0,0.5797]
[1734919225803,4.60847,3265.8,3264.0,0.5797]
[1734919226002,3.06252,3265.3,3264.0,3.64341]
[1734919226394,3.06261,3265.2,3264.0,3.64341]
[1734919226918,3.06261,3265.2,3264.4,0.5797]
[1734919227707,3.47372909,3266.1,3264.4,0.5797]
[1734919228119,3.0625,3265.3,3264.4,0.5797]
[1734919228402,3.06238,3265.5,3264.4,0.5797]
[1734919228605,1.4244,3266.2,3264.6,0.5797]
[1734919228768,3.0615,3266.4,3264.6,0.5797]
[1734919228769,3.06196,3265.9,3264.8,0.5797]
[1734919228969,3.06199,3265.9,3264.8,0.5797]
[1734919229172,3.06174,3266.2,3264.8,0.5797]
[1734919229386,7.95942909,3266.6,3264.8,0.5797]
[1734919229387,3.06175,3266.1,3264.8,0.5797]
[1734919229717,3.06196,3265.9,3264.8,0.5797]
[1734919229919,3.06174,3266.2,3264.9,0.997267]
[1734919230118,3.06174,3266.2,3265.0,0.5797]
[1734919230707,1.4244,3266.6,3265.0,12.62247]
[1734919230912,3.06109,3266.8,3265.2,0.55]
[1734919231121,3.06131,3266.6,3265.4,0.55]
[1734919231427,3.06131,3266.6,3265.5,0.5797]
[1734919231623,3.06131,3266.6,3265.5,1.05984466]
[1734919232005,3.06131,3266.6,3265.6,0.5797]
[1734919232195,3.0611,3266.8,3265.6,0.5797]
[1734919232391,3.0611,3266.8,3265.6,9.5597]
[1734919232591,3.06087,3267.1,3265.8,0.5797]
[1734919232801,3.06093,3267.0,3265.8,0.5797]
[1734919233527,3.06093,3267.0,3265.7,0.95597]
[1734919233528,3.06175,3266.1,3265.0,0.5797]
[1734919233835,3.06109,3266.8,3265.0,0.5797]
[1734919234137,3.06187,3266.0,3265.0,0.5797]
[1734919234304,3.0,3266.4,3265.0,0.5797]
[1734919234510,1.5512,3266.5,3265.0,0.5797]
[1734919234818,3.47372909,3266.2,3265.0,0.5797]
[1734919235010,3.06238,3265.5,3265.0,0.5797]
[1734919235207,3.06263,3265.2,3265.0,0.5797]
[1734919235834,3.06264,3265.2,3264.2,0.5797]
[1734919235993,1.5566,3265.7,3264.2,0.5797]
[1734919236189,3.06287,3265.0,3264.2,0.5797]
[1734919236438,3.06285,3265.0,3264.2,0.5797]
[1734919236595,3.06289,3264.9,3264.2,0.5797]
[1734919236797,3.06262,3265.2,3264.2,0.5797]
[1734919237145,3.06311,3264.7,3264.2,0.5797]
[1734919237435,3.06327,3264.5,3264.2,0.5797]
[1734919237804,4.5566,3265.7,3264.2,0.5797]
[1734919238158,3.06241,3265.4,3264.2,0.5797]
[1734919238320,3.06258,3265.3,3264.2,0.5797]
[1734919238520,3.06304,3264.8,3264.2,0.5797]
[1734919238737,3.0,3265.5,3264.2,0.5797]
[1734919238738,3.06311,3264.7,3264.2,0.5797]
[1734919239035,1.5566,3265.7,3264.2,0.5797]
[1734919239239,3.06237,3265.5,3264.3,3.61343]
[1734919239447,3.06237,3265.5,3264.4,0.5797]
[1734919239651,3.06237,3265.5,3264.7,0.5797]
[1734919240008,1.5444,3266.2,3264.7,0.5797]
[1734919240009,3.06296,3264.9,3264.7,0.5797]
[1734919240215,3.06297,3264.8,3264.7,0.5797]
[1734919240617,3.06346,3264.3,3263.6,9.5597]
[1734919240964,1.5295,3265.2,3263.6,9.5597]
[1734919240965,3.06376,3264.0,3263.6,9.5597]
[1734919241120,3.064,3263.7,3263.6,0.5797]
[1734919241648,3.06428,3263.4,3263.3,1.25005171]
[1734919241955,6.06428,3263.4,3263.3,1.25005171]
[1734919242261,6.06428,3263.4,3262.6,0.5797]
[1734919242406,3.06486,3262.8,3262.6,0.5797]
[1734919242606,3.06428,3263.4,3262.0,0.5797]
[1734919242806,3.0,3263.3,3262.0,0.94933384]
[1734919243020,3.06536,3262.3,3262.0,0.5797]
[1734919243219,1.5295,3262.5,3261.9,1.25005171]
[1734919243435,3.06557,3262.1,3261.9,1.71e-06]
[1734919243758,3.06624,3261.4,3261.0,1.24993682]
[1734919244041,1.5295,3262.5,3261.0,1.24993682]
[1734919244042,3.06546,3262.2,3261.0,1.24993682]
[1734919244456,3.06517,3262.5,3261.0,10.22993682]
[1734919244619,3.06528,3262.4,3261.1,1.32965168]
[1734919244824,3.06533,3262.3,3261.1,1.32965168]
[1734919245030,3.0,3262.7,3261.1,1.32965168]
[1734919245247,3.06534,3262.3,3261.1,1.32965168]
[1734919245749,3.06549,3262.2,3261.1,1.32965168]
[1734919245929,3.06549,3262.2,3261.0,8.98]
[1734919245930,3.0,3262.7,3261.2,1.03096517]
[1734919246143,3.06508,3262.6,3261.3,3.55]
[1734919246345,3.0,3262.8,3261.3,6.61625]
[1734919246549,3.0,3262.8,3261.5,0.55]
[1734919246746,4.5295,3263.4,3261.5,9.53]
[1734919246937,3.06525,3262.4,3261.6,0.953]
[1734919247152,3.0,3262.8,3261.3,11.98]
[1734919247462,3.0,3263.1,3261.3,11.98]
[1734919247624,3.06552,3262.1,3261.3,8.98]
[1734919247824,3.06571,3261.9,3261.3,8.98]
[1734919248432,3.0,3262.4,3260.4,8.98]
[1734919248632,3.06615,3261.5,3260.1,8.98]
[1734919248923,3.06569,3262.0,3259.9,3.22729318]
[1734919248924,3.06638,3261.2,3260.3,8.98]
[1734919249129,1.1675,3261.7,3259.9,0.15978318]
[1734919249358,3.06677,3260.8,3259.9,0.15978318]
[1734919249661,3.06677,3260.8,3260.0,0.91397832]
[1734919250083,3.06693,3260.6,3260.0,0.91397832]
[1734919250427,3.06693,3260.6,3259.9,0.15978318]
[1734919251060,4.1675,3261.7,3259.9,0.15978318]
[1734919251267,3.0,3261.2,3259.9,3.22732318]
[1734919251461,3.06603,3261.6,3259.9,0.15978318]
[1734919251667,3.06603,3261.6,3260.2,0.55]
[1734919251851,3.06603,3261.6,3260.1,0.55]
[1734919252456,1.2085,3262.2,3260.1,0.55]
[1734919252659,1.2089,3262.6,3260.3,15.5972]
[1734919252829,3.06503,3262.7,3260.5,0.55]
[1734919253033,3.06475,3262.9,3261.0,8.98]
[1734919253234,4.27449,3262.1,3260.6,3.62905126]
[1734919253442,3.06585,3261.8,3260.5,0.55]
[1734919253668,3.06558,3262.1,3260.7,9.53]
[1734919253868,0.63147225,3263.9,3260.6,3.0]
[1734919253869,3.06475,3262.9,3261.3,3.06624]
[1734919254047,3.06452,3263.2,3261.8,3.06575]
[1734919254246,3.06452,3263.2,3261.4,15.04613]
[1734919254247,3.06465,3263.1,3261.6,3.06593]
[1734919254449,3.06465,3263.1,3261.8,8.98]
[1734919255189,3.06428,3263.4,3261.8,8.98]
[1734919255399,3.06444,3263.3,3261.9,9.878]
[1734919255873,3.0,3263.1,3261.9,9.878]
[1734919256241,3.0643,3263.4,3262.0,3.06555]
[1734919256441,1.215,3263.7,3262.1,1.294355]
[1734919256747,3.06458,3263.1,3262.1,1.294355]
[1734919257082,3.06438,3263.3,3262.1,1.294355]
[1734919257393,3.06438,3263.3,3261.9,12.04568]
[1734919257394,3.06498,3262.7,3261.9,8.98]
[1734919257544,1.1432,3263.3,3261.9,8.98]
[1734919257878,3.06545,3262.2,3261.9,8.98]
[1734919258082,3.0,3262.9,3261.9,8.98]
[1734919258283,3.06533,3262.3,3261.9,8.98]
[1734919258446,3.0,3262.9,3261.9,8.98]
[1734919258644,3.06559,3262.1,3261.9,8.98]
[1734919259480,3.06559,3262.1,3260.8,1.253]
[1734919259481,3.0,3262.4,3260.8,1.253]
[1734919259788,3.0,3262.4,3260.6,3.06691]
[1734919260093,3.06562,3262.0,3260.6,3.06691]
[1734919260295,3.06572,3261.9,3260.7,0.601698]
[1734919260498,3.06572,3261.9,3260.7,3.601698]
[1734919260785,3.06548,3262.2,3260.8,3.7335708]
[1734919260957,3.06555,3262.1,3260.9,3.55]
[1734919261287,3.06495,3262.7,3261.4,3.06613]
[1734919261506,3.06499,3262.7,3261.3,3.61623]
[1734919261668,3.06499,3262.7,3261.4,0.661623]
[1734919261865,3.06449,3263.2,3261.6,8.98]
[1734919262097,3.06392,3263.8,3261.9,3.0]
[1734919262255,1.1563,3263.9,3262.1,0.62397402]
[1734919262457,4.22092,3263.1,3261.4,0.661623]
[1734919262653,3.06548,3262.2,3261.4,4.28390114]
[1734919262880,1.1563,3263.1,3261.4,1.28390114]
[1734919263228,1.1563,3263.1,3261.4,0.62227814]
[1734919263388,4.1563,3263.1,3261.4,0.62227814]
[1734919263557,3.06496,3262.7,3261.4,0.62227814]
[1734919263757,4.1563,3263.1,3261.4,0.62227814]
[1734919263983,3.06478,3262.9,3261.5,3.61604]
[1734919264187,3.06545,3262.2,3261.3,3.0]
[1734919264368,3.06552,3262.1,3261.3,3.0]
[1734919264581,1.2244,3262.5,3260.8,0.6668608]
[1734919264783,3.06609,3261.5,3260.3,8.98]
[1734919264959,3.06609,3261.5,3260.3,12.04719]
[1734919265319,3.06609,3261.5,3260.3,8.98]
[1734919265875,3.0,3262.3,3260.4,9.59472831]
[1734919266099,3.06522,3262.4,3260.4,9.59472831]
[1734919266100,3.06586,3261.8,3260.6,3.06687]
[1734919266457,4.1373,3261.7,3260.4,0.61472831]
[1734919266722,1.1373,3261.7,3260.3,8.98]
[1734919267085,3.06629,3261.3,3260.3,8.98]
[1734919267321,3.06636,3261.2,3260.3,8.98]
[1734919267478,3.06636,3261.2,3260.4,0.898]
[1734919267845,3.06618,3261.4,3260.4,0.898]
[1734919268483,3.06543,3262.2,3260.8,3.06669]
[1734919268686,1.1321,3262.4,3260.4,6.96507]
[1734919268687,3.06526,3262.4,3261.0,9.53]
[1734919268885,1.1486,3262.8,3261.0,9.53]
[1734919269109,3.06547,3262.2,3261.1,1.253]
[1734919269892,7.34622,3263.8,3261.5,3.06598]
[1734919270123,7.34622,3263.8,3261.3,3.55]
[1734919270124,3.06426,3263.5,3262.1,3.06549]
[1734919270325,1.2184,3263.8,3262.3,3.0]
[1734919270528,3.06366,3264.1,3262.5,3.55]
[1734919270795,3.0635,3264.3,3262.9,3.06473]
[1734919271046,3.06325,3264.5,3262.8,0.60836618]
[1734919271344,3.06379,3264.0,3262.8,9.58836618]
[1734919271992,4.28164,3264.6,3263.3,8.98]
[1734919272190,4.28164,3264.6,3263.4,0.898]
[1734919272191,1.2184,3264.6,3263.4,0.898]
[1734919272394,1.2184,3264.6,3263.0,8.98]
[1734919272395,3.06348,3264.3,3263.1,0.55]
[1734919272715,3.06348,3264.3,3263.1,3.61454]
[1734919272893,3.06305,3264.8,3263.0,8.98]
[1734919273091,3.06373,3264.0,3263.0,8.98]
[1734919273405,4.1751,3264.2,3262.1,3.0]
[1734919273618,3.06425,3263.5,3262.3,3.0]
[1734919273920,3.06463,3263.1,3261.9,8.98]
[1734919274101,6.06393,3263.8,3262.4,0.26702997]